bitfinex/quotes_BTCUSD_20250303
["timestamp","ask_amount","ask_price","bid_price","bid_amount"]
[1740966627038,0.00040327,93048.0,93046.0,0.16121]
[1740966627466,0.00040327,93048.0,93046.0,0.16821]
[1740966627781,0.00040327,93048.0,93046.0,0.16121]
[1740966628382,0.00040327,93048.0,93046.0,0.16421]
[1740966628705,0.00040327,93048.0,93046.0,0.16821]
[1740966629092,0.00040327,93048.0,93046.0,0.17321]
[1740966629455,0.1615488,93047.0,93046.0,0.012]
[1740966630202,0.1615488,93047.0,93046.0,0.005]
[1740966630383,0.0003408,93047.0,93046.0,0.007]
[1740966630584,0.161212,93045.0,93039.0,0.214961]
[1740966631172,0.0003408,93047.0,93026.0,0.02106143]
[1740966631407,0.0003408,93047.0,93027.0,0.22688383]
[1740966631408,0.161213,93045.0,93027.0,0.22688383]
[1740966631589,0.161214,93044.0,93038.0,0.161223]
[1740966631792,0.0003408,93047.0,93027.0,0.01189483]
[1740966631990,0.214976,93034.0,93024.0,0.214997]
[1740966632195,0.161232,93034.0,93028.0,0.161241]
[1740966632399,0.161233,93033.0,93031.0,0.0031703]
[1740966632617,0.0003408,93047.0,93031.0,0.0031703]
[1740966632824,0.161233,93033.0,93031.0,0.0031703]
[1740966633233,0.161234,93032.0,93031.0,0.0031703]
[1740966633630,0.161234,93032.0,93031.0,0.0001703]
[1740966634086,0.161234,93032.0,93031.0,0.0071703]
[1740966634435,0.001,93032.0,93031.0,0.0071703]
[1740966634875,0.001,93032.0,93031.0,0.1684063]
[1740966635076,0.001,93032.0,93031.0,0.1754063]
[1740966636993,0.001,93032.0,93031.0,0.0141703]
[1740966637194,0.162234,93032.0,93031.0,0.0141703]
[1740966637394,0.162234,93032.0,93031.0,1.5141703]
[1740966637704,0.001,93032.0,93031.0,1.5141703]
[1740966638110,0.001,93032.0,93031.0,1.6754063]
[1740966647226,0.0003408,93047.0,93046.0,0.15991]
[1740966647357,0.0003406,93066.0,93050.0,0.0728]
[1740966647554,0.0003406,93066.0,93065.0,0.461177]
[1740966647764,0.000341,93090.0,93088.0,0.161137]
[1740966647961,0.000341,93090.0,93088.0,1.661137]
[1740966648402,0.00045762,93089.0,93088.0,1.661137]
[1740966648614,0.00045762,93089.0,93088.0,1.67331128]
[1740966650243,0.00045762,93089.0,93088.0,1.98031128]
[1740966650425,0.00045762,93089.0,93088.0,1.98731128]
[1740966650724,0.00045762,93089.0,93088.0,2.0821483]
[1740966650941,0.00045762,93089.0,93088.0,2.0961483]
[1740966651076,0.00045762,93089.0,93088.0,2.1685083]
[1740966652389,0.00045762,93089.0,93088.0,2.1615083]
[1740966652611,0.00045762,93089.0,93088.0,2.1755083]
[1740966652817,0.00045762,93089.0,93088.0,2.1685083]
[1740966653033,0.00045762,93089.0,93088.0,1.98031128]
[1740966653695,0.00045762,93089.0,93088.0,1.98731128]
[1740966654423,0.00045762,93089.0,93088.0,0.18731128]
[1740966654624,0.00045762,93089.0,93088.0,0.18881497]
[1740966654794,0.00045762,93089.0,93088.0,1.68881497]
[1740966654994,0.00045762,93089.0,93088.0,1.68731128]
[1740966656000,0.00045762,93089.0,93088.0,1.7961483]
[1740966656651,0.00045762,93089.0,93088.0,1.68731128]
[1740966657078,0.00045762,93089.0,93088.0,2.0961483]
[1740966657236,0.00045762,93089.0,93088.0,1.98731128]
[1740966658042,0.00045762,93089.0,93088.0,2.0961483]
[1740966658941,0.00045762,93089.0,93088.0,2.0891483]
[1740966659345,0.00045762,93089.0,93088.0,2.0961483]
[1740966659544,0.00045762,93089.0,93088.0,3.5805713]
[1740966659796,0.000341,93090.0,93089.0,0.461136]
[1740966660028,0.000341,93090.0,93089.0,1.08393402]
[1740966660556,0.000341,93090.0,93089.0,1.01800102]
[1740966661146,0.000341,93090.0,93089.0,0.71452202]
[1740966661320,0.000341,93090.0,93089.0,0.57697302]
[1740966662320,0.000341,93090.0,93089.0,0.168136]
[1740966663143,0.000341,93090.0,93089.0,1.668136]
[1740966663768,0.000341,93090.0,93089.0,1.514]
[1740966663971,0.000341,93090.0,93089.0,1.675136]
[1740966664239,0.000341,93090.0,93089.0,1.668136]
[1740966664569,0.000341,93090.0,93089.0,1.661136]
[1740966664886,0.000341,93090.0,93089.0,1.668136]
[1740966665267,0.000341,93090.0,93089.0,0.0071702]
[1740966665268,0.243875,93090.0,93089.0,0.0071702]
[1740966665491,0.290975,93090.0,93089.0,0.0141702]
[1740966666174,0.129841,93090.0,93089.0,0.0141702]
[1740966666567,0.290975,93090.0,93089.0,0.0001702]
[1740966666762,0.290975,93090.0,93089.0,0.0061702]
[1740966666963,0.290975,93090.0,93089.0,0.0131702]
[1740966668008,0.129841,93090.0,93089.0,0.0131702]
[1740966668185,0.082741,93090.0,93089.0,0.1743062]
[1740966668386,0.000341,93090.0,93089.0,0.1743062]
[1740966668630,0.000341,93090.0,93089.0,0.0131702]
[1740966668785,0.161475,93090.0,93089.0,0.0131702]
[1740966669206,0.000341,93090.0,93089.0,0.0131702]
[1740966669408,0.161475,93090.0,93089.0,0.0131702]
[1740966670461,0.237875,93090.0,93089.0,0.0131702]
[1740966671360,0.286475,93090.0,93089.0,0.0131702]
[1740966672062,0.286475,93090.0,93089.0,0.0071702]
[1740966672472,0.286475,93090.0,93089.0,0.0101702]
[1740966672667,0.910575,93090.0,93089.0,0.0101702]
[1740966672875,0.910575,93090.0,93027.0,0.07928]
[1740966672876,0.0773,93087.0,93027.0,0.07928]
[1740966673070,0.1612,93052.0,93051.0,0.00011702]
[1740966673275,0.0773,93052.0,93051.0,0.00011702]
[1740966673492,0.2385,93052.0,93051.0,0.00011702]
[1740966674692,0.2385,93052.0,93051.0,0.00711702]
[1740966674887,0.2385,93052.0,93051.0,0.00011702]
[1740966675296,0.5385,93052.0,93051.0,0.00711702]
[1740966676728,0.5385,93052.0,93051.0,0.00011702]
[1740966676926,0.5385,93052.0,93051.0,0.00411702]
[1740966677151,0.5395,93052.0,93051.0,0.01011702]
[1740966677389,0.56100072,93052.0,93051.0,0.01011702]
[1740966678019,0.5395,93052.0,93051.0,0.01011702]
[1740966678138,0.45758,93052.0,93051.0,0.01011702]
[1740966678339,0.0783,93052.0,93051.0,0.01011702]
[1740966678656,0.001,93052.0,93051.0,0.17131802]
[1740966678996,0.001,93052.0,93051.0,0.01011702]
[1740966679703,0.001,93052.0,93051.0,0.17131802]
[1740966680267,0.001,93052.0,93051.0,0.01011702]
[1740966680472,0.001,93052.0,93051.0,0.17131802]
[1740966681528,0.001,93052.0,93051.0,0.01011702]
[1740966682293,0.001,93052.0,93051.0,0.17131802]
[1740966682686,0.001,93052.0,93051.0,0.01011702]
[1740966683288,0.001,93052.0,93051.0,1.51011702]
[1740966684209,0.1622,93052.0,93051.0,1.51011702]
[1740966684378,0.001,93052.0,93051.0,1.51011702]
[1740966685234,0.1622,93052.0,93051.0,1.51011702]
[1740966686602,0.1622,93052.0,93051.0,0.01011702]
[1740966686807,0.001,93052.0,93051.0,0.01011702]
[1740966688319,0.1622,93052.0,93051.0,0.01011702]
[1740966689195,0.1622,93052.0,93051.0,0.01028722]
[1740966689797,0.2373,93052.0,93051.0,0.01028722]
[1740966690160,0.9072,93052.0,93051.0,0.01028722]
[1740966694790,0.94072,93052.0,93051.0,0.01028722]
[1740966701896,0.8614,93052.0,93051.0,0.01028722]
[1740966702181,0.94072,93052.0,93051.0,0.01028722]
[1740966702501,0.94068,93052.0,93051.0,0.01028722]
[1740966702706,0.64072,93052.0,93051.0,0.01028722]
[1740966703282,0.94072,93052.0,93051.0,0.01028722]
[1740966703843,0.8614,93052.0,93051.0,0.01028722]
[1740966704044,0.94072,93052.0,93051.0,0.01028722]
[1740966704974,0.3251,93052.0,93051.0,0.01028722]
[1740966705132,0.001,93052.0,93051.0,0.17148822]
[1740966705313,0.001,93052.0,93051.0,0.18518177]
[1740966705834,0.001,93052.0,93051.0,0.18367738]
[1740966706456,0.23436,93069.0,93051.0,0.01647638]
[1740966706630,0.23436,93069.0,93064.0,0.161177]
[1740966706836,0.23436,93069.0,93064.0,0.160177]
[1740966707460,0.23436,93069.0,93068.0,0.161172]
[1740966707669,0.15504,93069.0,93068.0,0.161172]
[1740966708188,0.001,93069.0,93068.0,0.161172]
[1740966708591,0.001,93069.0,93068.0,0.461172]
[1740966708772,0.001,93069.0,93068.0,0.57000902]
[1740966708958,0.001,93069.0,93068.0,0.89910902]
[1740966709161,0.001,93069.0,93068.0,1.12682802]
[1740966709388,0.0003412,93097.0,93088.0,0.161137]
[1740966710793,0.0003412,93097.0,93088.0,0.16964069]
[1740966711001,0.0003412,93097.0,93088.0,0.18144317]
[1740966711191,0.0003412,93097.0,93088.0,0.17993948]
[1740966711954,0.0003412,93097.0,93088.0,0.168137]
[1740966712349,0.0003412,93097.0,93088.0,0.175137]
[1740966712969,0.0003412,93097.0,93088.0,0.014]
[1740966713132,0.1614764,93089.0,93088.0,0.014]
[1740966713346,0.0003404,93089.0,93088.0,0.014]
[1740966714071,0.1614764,93089.0,93088.0,0.014]
[1740966714432,0.0003404,93089.0,93088.0,0.014]
[1740966714863,0.0003404,93089.0,93088.0,0.175137]
[1740966715242,0.0003404,93089.0,93088.0,0.014]
[1740966715445,0.0003404,93089.0,93086.0,0.16114]
[1740966715446,0.0003404,93089.0,93077.0,0.214875]
[1740966715650,0.161146,93083.0,93076.0,0.00011702]
[1740966715869,0.0003404,93089.0,93076.0,0.00011702]
[1740966716066,0.3763254,93089.0,93088.0,0.007]
[1740966716271,0.2151894,93089.0,93076.0,0.16127402]
[1740966716455,0.0003404,93089.0,93086.0,0.161141]
[1740966716650,0.0003404,93089.0,93077.0,0.007]
[1740966716855,0.0003404,93089.0,93088.0,0.007]
[1740966717389,0.0003404,93089.0,93088.0,0.168137]
[1740966717595,0.0003404,93089.0,93088.0,0.161137]
[1740966717800,0.0003404,93089.0,93086.0,0.16814]
[1740966718155,0.0003404,93089.0,93086.0,0.16114]
[1740966718363,0.0003404,93089.0,93078.0,1.5]
[1740966718540,0.1614764,93089.0,93088.0,0.007]
[1740966718947,0.1624764,93089.0,93088.0,0.007]
[1740966719872,0.1614764,93089.0,93088.0,0.007]
[1740966720238,0.1624764,93089.0,93088.0,0.007]
[1740966720642,0.1614764,93089.0,93088.0,0.007]
[1740966720843,0.1624764,93089.0,93088.0,0.012]
[1740966721051,0.5417164,93089.0,93088.0,0.012]
[1740966721214,0.5417164,93089.0,93088.0,0.005]
[1740966721420,0.6208164,93089.0,93088.0,0.005]
[1740966721630,0.9459164,93089.0,93088.0,0.005]
[1740966722157,0.9459164,93089.0,93088.0,0.00265878]
[1740966722158,0.9449164,93089.0,93088.0,0.00265878]
[1740966722365,0.9449164,93089.0,93076.0,0.00011702]
[1740966722366,0.161156,93077.0,93076.0,0.00011702]
[1740966722778,0.242856,93077.0,93076.0,0.00011702]
[1740966722980,0.542856,93077.0,93076.0,0.00011702]
[1740966723384,1.238456,93077.0,93076.0,0.00011702]
[1740966723587,1.288456,93077.0,93076.0,0.00011702]
[1740966723788,1.31005568,93077.0,93076.0,0.00011702]
[1740966723969,0.542877,93065.0,93051.0,0.0001702]
[1740966724185,1.32003772,93065.0,93051.0,0.0001702]
[1740966724992,1.27003772,93065.0,93051.0,0.0001702]
[1740966725254,1.32003772,93065.0,93051.0,0.0001702]
[1740966725420,1.37003772,93065.0,93051.0,0.0001702]
[1740966726065,1.37703772,93065.0,93051.0,0.0001702]
[1740966726270,1.37703772,93065.0,93064.0,0.0021703]
[1740966726604,1.37703772,93065.0,93064.0,0.0001703]
[1740966727018,1.32703772,93065.0,93064.0,0.0021703]
[1740966727212,1.37703772,93065.0,93064.0,0.0021703]
[1740966727435,1.37003772,93065.0,93064.0,0.0021703]
[1740966727774,1.37603772,93065.0,93064.0,0.0021703]
[1740966728200,1.52675416,93065.0,93064.0,0.0021703]
[1740966728566,1.53275416,93065.0,93064.0,0.0001703]
[1740966729017,1.41883772,93065.0,93064.0,0.0041703]
[1740966729219,1.41883772,93065.0,93064.0,0.0001703]
[1740966729398,1.42483772,93065.0,93064.0,0.0001703]
[1740966729599,1.42483772,93065.0,93064.0,0.0041703]
[1740966730286,0.2112,93052.0,93051.0,0.0001702]
[1740966730487,0.642115,93043.0,93042.0,0.0001702]
[1740966730682,1.239915,93043.0,93042.0,0.0001702]
[1740966731346,1.190315,93043.0,93042.0,0.0001702]
[1740966731683,1.28174791,93043.0,93042.0,0.0001702]
[1740966732543,1.28274791,93043.0,93042.0,0.0001702]
[1740966732733,1.28374791,93043.0,93042.0,0.0001702]
[1740966733089,1.33374791,93043.0,93042.0,0.0001702]
[1740966734157,1.33274791,93043.0,93042.0,0.0001702]
[1740966734577,1.38274791,93043.0,93042.0,0.0001702]
[1740966735025,1.38174791,93043.0,93042.0,0.0001702]
[1740966735195,1.43574791,93043.0,93042.0,0.0001702]
[1740966735562,1.43474791,93043.0,93042.0,0.0001702]
[1740966735767,1.43574791,93043.0,93042.0,0.0001702]
[1740966736467,1.33574791,93043.0,93042.0,0.0001702]
[1740966737062,1.20750791,93043.0,93042.0,0.0001702]
[1740966737269,1.28678791,93043.0,93042.0,0.0001702]
[1740966737473,0.98678791,93043.0,93042.0,0.0001702]
[1740966737673,0.66308791,93043.0,93042.0,0.0001702]
[1740966737976,0.96308791,93043.0,93042.0,0.0001702]
[1740966738168,0.88178791,93043.0,93042.0,0.0001702]
[1740966739022,0.6291,93043.0,93042.0,0.0001702]
[1740966739244,0.70838,93043.0,93042.0,0.0001702]
[1740966739450,0.40838,93043.0,93042.0,0.0001702]
[1740966739718,0.40338,93043.0,93042.0,0.0001702]
[1740966739997,0.40838,93043.0,93042.0,0.0001702]
[1740966740170,0.40738,93043.0,93042.0,0.0001702]
[1740966740330,0.40338,93043.0,93042.0,0.0001702]
[1740966740533,0.3251,93043.0,93042.0,0.0001702]
[1740966740735,0.3261,93043.0,93042.0,0.1613872]
[1740966740924,0.3261,93043.0,93042.0,0.0001702]
[1740966741125,0.3261,93043.0,93042.0,0.1613872]
[1740966741326,0.002,93043.0,93042.0,0.1613872]
[1740966742252,0.002,93043.0,93042.0,0.2106872]
[1740966742459,0.001,93043.0,93042.0,0.2106872]
[1740966742656,0.002,93043.0,93042.0,0.2176872]
[1740966743088,0.001,93043.0,93042.0,0.2106872]
[1740966743285,0.001,93043.0,93042.0,1.7176872]
[1740966743648,0.15512,93052.0,93051.0,0.160201]
[1740966743876,0.15512,93052.0,93051.0,0.159201]
[1740966744253,0.15512,93052.0,93051.0,1.659201]
[1740966744465,0.15512,93052.0,93051.0,1.658201]
[1740966745278,0.15612,93052.0,93051.0,1.665201]
[1740966745474,0.15612,93052.0,93051.0,1.672201]
[1740966745674,0.15612,93052.0,93051.0,0.172201]
[1740966747610,0.001,93052.0,93051.0,0.172201]
[1740966747809,0.001,93052.0,93051.0,0.1737051]
[1740966748123,0.001,93052.0,93051.0,0.4737051]
[1740966748319,0.001,93052.0,93051.0,0.472201]
[1740966748524,0.001,93052.0,93051.0,0.014]
[1740966748724,0.001,93052.0,93051.0,0.175201]
[1740966749065,0.001,93052.0,93051.0,0.014]
[1740966749447,0.001,93052.0,93051.0,0.175201]
[1740966749657,0.001,93052.0,93051.0,0.17670532]
[1740966750061,0.1622,93052.0,93051.0,0.014]
[1740966750262,0.162541,93052.0,93051.0,0.014]
[1740966750468,0.001341,93052.0,93051.0,0.014]
[1740966750696,0.162541,93052.0,93051.0,0.014]
[1740966750866,0.001341,93052.0,93051.0,0.014]
[1740966751069,0.162541,93052.0,93051.0,0.014]
[1740966752073,0.001341,93052.0,93051.0,0.014]
[1740966752333,0.162541,93052.0,93051.0,0.014]
[1740966752513,0.001341,93052.0,93051.0,0.014]
[1740966752810,0.001341,93052.0,93051.0,0.175201]
[1740966753340,0.001341,93052.0,93051.0,1.675201]
[1740966754099,0.001341,93052.0,93051.0,2.021401]
[1740966757410,0.001341,93052.0,93051.0,1.514]
[1740966757814,0.001341,93052.0,93051.0,1.675201]
[1740966757957,0.162541,93052.0,93051.0,1.514]
[1740966758152,0.001341,93052.0,93051.0,1.514]
[1740966758598,0.001341,93052.0,93051.0,0.014]
[1740966758812,0.162541,93052.0,93051.0,0.014]
[1740966759117,0.001341,93052.0,93051.0,1.514]
[1740966759660,0.001341,93052.0,93051.0,1.675201]
[1740966760696,0.001341,93052.0,93051.0,1.514]
[1740966761007,0.001341,93052.0,93051.0,1.675201]
[1740966762586,0.001341,93052.0,93051.0,1.6753715]
[1740966765936,0.001341,93052.0,93051.0,2.0206715]
[1740966770787,0.001341,93052.0,93051.0,2.12950852]
[1740966771215,0.001341,93052.0,93051.0,2.45460852]
[1740966771814,0.001341,93052.0,93051.0,3.05525552]
[1740966771996,0.001341,93052.0,93051.0,2.78357652]
[1740966772189,0.001341,93052.0,93051.0,2.83357652]
[1740966772798,0.000341,93052.0,93051.0,2.82657652]
[1740966772993,0.001341,93052.0,93051.0,2.83357652]
[1740966773246,0.001341,93052.0,93051.0,2.82657652]
[1740966773745,0.001341,93052.0,93051.0,2.83357652]
[1740966774115,0.001341,93052.0,93051.0,2.78357652]
[1740966774340,0.001341,93052.0,93051.0,2.45460852]
[1740966774547,0.001341,93052.0,93051.0,2.50460852]
[1740966774847,0.001341,93052.0,93051.0,2.45460852]
[1740966779273,0.001341,93052.0,93051.0,2.96451152]
[1740966779793,1e-06,93052.0,93051.0,2.87252452]
[1740966780092,1e-06,93052.0,93051.0,2.92252452]
[1740966780533,1e-06,93052.0,93051.0,2.45460852]
[1740966781013,1e-06,93052.0,93051.0,2.40930852]
[1740966782078,1e-06,93052.0,93051.0,2.3004715]
[1740966782421,1e-06,93052.0,93051.0,2.0004715]
[1740966782659,0.08002072,93065.0,93064.0,0.161179]
[1740966783608,0.00012072,93065.0,93064.0,0.161179]
[1740966784078,0.00012072,93065.0,93064.0,0.168179]
[1740966784869,0.00012072,93065.0,93064.0,1.668179]
[1740966785526,0.00012072,93065.0,93064.0,1.968179]
[1740966785691,0.00012072,93065.0,93064.0,2.08401602]
[1740966786148,0.00012072,93065.0,93064.0,2.07001602]
[1740966786398,0.00012072,93065.0,93064.0,2.07701602]
[1740966786623,0.00012072,93065.0,93064.0,2.08401602]
[1740966788167,7.2e-07,93065.0,93064.0,3.06535302]
[1740966788362,7.2e-07,93065.0,93064.0,2.45501602]
[1740966788914,7.2e-07,93065.0,93064.0,2.44801602]
[1740966789163,7.2e-07,93065.0,93064.0,2.39511602]
[1740966789399,7.2e-07,93065.0,93064.0,2.293279]
[1740966789556,7.2e-07,93065.0,93064.0,2.300279]
[1740966789763,7.2e-07,93065.0,93064.0,2.293279]
[1740966790200,7.2e-07,93065.0,93064.0,2.286279]
[1740966790582,7.2e-07,93065.0,93064.0,2.293279]
[1740966791380,7.2e-07,93065.0,93064.0,2.300279]
[1740966791790,7.2e-07,93065.0,93064.0,2.293279]
[1740966791991,7.2e-07,93065.0,93064.0,2.300279]
[1740966795566,7.2e-07,93065.0,93064.0,2.000279]
[1740966795949,7.2e-07,93065.0,93064.0,1.993279]
[1740966796152,7.2e-07,93065.0,93064.0,2.000279]
[1740966796692,7.2e-07,93065.0,93064.0,1.993279]
[1740966796892,7.2e-07,93065.0,93064.0,2.000279]
[1740966797258,0.00034152,93065.0,93064.0,1.993279]
[1740966797455,0.00034152,93065.0,93064.0,1.986279]
[1740966797682,0.00034152,93065.0,93064.0,1.8391]
[1740966797890,0.08034152,93065.0,93064.0,1.8391]
[1740966798294,0.08034152,93065.0,93064.0,2.000279]
[1740966799294,0.00034152,93065.0,93064.0,2.000279]
[1740966800037,0.00034152,93065.0,93064.0,1.668179]
[1740966800791,0.00034152,93065.0,93064.0,1.675179]
[1740966800991,0.00034152,93065.0,93064.0,1.661179]
[1740966801399,0.00034152,93065.0,93064.0,1.675179]
[1740966801928,0.00034152,93065.0,93064.0,1.668179]
[1740966802116,0.00034152,93065.0,93064.0,1.675179]
[1740966802309,0.00034152,93065.0,93064.0,2.08401602]
[1740966803615,0.00034152,93065.0,93064.0,2.07701602]
[1740966804032,0.00034152,93065.0,93064.0,2.08401602]
[1740966804632,0.00034152,93065.0,93064.0,2.94878802]
[1740966804880,5.2e-07,93065.0,93064.0,2.94378802]
[1740966805177,5.2e-07,93065.0,93064.0,2.45411602]
[1740966805522,5.2e-07,93065.0,93064.0,2.44711602]
[1740966805720,5.2e-07,93065.0,93064.0,2.45411602]
[1740966806367,5.2e-07,93065.0,93064.0,2.40411602]
[1740966806941,5.2e-07,93065.0,93064.0,2.39011602]
[1740966807239,5.2e-07,93065.0,93064.0,1.663179]
[1740966807422,5.2e-07,93065.0,93064.0,1.502]
[1740966807622,5.2e-07,93065.0,93064.0,1.495]
[1740966807845,5.2e-07,93065.0,93064.0,1.663179]
[1740966808044,5.2e-07,93065.0,93064.0,1.502]
[1740966808250,5.2e-07,93065.0,93064.0,1.656179]
[1740966808489,5.2e-07,93065.0,93064.0,1.495]
[1740966808689,5.2e-07,93065.0,93064.0,1.656179]
[1740966808896,5.2e-07,93065.0,93064.0,1.502]
[1740966809111,5.2e-07,93065.0,93064.0,1.5021704]
[1740966809319,5.2e-07,93065.0,93064.0,1.4951704]
[1740966809704,5.2e-07,93065.0,93064.0,1.5021704]
[1740966809918,5.2e-07,93065.0,93064.0,1.5091704]
[1740966810301,5.2e-07,93065.0,93064.0,1.6703494]
[1740966811229,5.2e-07,93065.0,93064.0,1.68183359]
[1740966814104,5.2e-07,93065.0,93064.0,1.5091704]
[1740966814491,5.2e-07,93065.0,93064.0,1.6703494]
[1740966816069,5.2e-07,93065.0,93064.0,1.5091704]
[1740966816801,5.2e-07,93065.0,93064.0,1.6703494]
[1740966817126,5.2e-07,93065.0,93064.0,1.6633494]
[1740966817483,5.2e-07,93065.0,93064.0,1.6703494]
[1740966817701,5.2e-07,93065.0,93064.0,1.6633494]
[1740966818103,5.2e-07,93065.0,93064.0,1.6703494]
[1740966818651,5.2e-07,93065.0,93064.0,1.6633494]
[1740966818920,5.2e-07,93065.0,93064.0,1.5091704]
[1740966819283,5.2e-07,93065.0,93064.0,1.5021704]
[1740966819486,5.2e-07,93065.0,93064.0,1.5091704]
[1740966824926,0.16117752,93065.0,93064.0,1.5091704]
[1740966825045,0.23787752,93065.0,93064.0,0.0141704]
[1740966826117,0.23787752,93065.0,93064.0,1.5141704]
[1740966828908,0.23787752,93065.0,93064.0,1.5071704]
[1740966829265,0.23787752,93065.0,93064.0,0.0071704]
[1740966829565,0.23787752,93065.0,93064.0,1.5141704]
[1740966829905,0.23787752,93065.0,93064.0,1.5071704]
[1740966830109,0.23787752,93065.0,93064.0,1.5141704]
[1740966830526,0.23787752,93065.0,93064.0,1.5071704]
[1740966831129,0.23787752,93065.0,93064.0,1.5141704]
[1740966833189,0.07670052,93065.0,93064.0,1.5141704]
[1740966833393,5.2e-07,93065.0,93064.0,1.5141704]
[1740966834230,5.2e-07,93065.0,93064.0,1.9753494]
[1740966834486,5.2e-07,93065.0,93064.0,2.07718642]
[1740966834836,5.2e-07,93065.0,93064.0,2.08418642]
[1740966835085,5.2e-07,93065.0,93064.0,2.07718642]
[1740966835500,5.2e-07,93065.0,93064.0,2.10566045]
[1740966835656,5.2e-07,93065.0,93064.0,2.32192343]
[1740966835853,5.2e-07,93065.0,93064.0,2.31492343]
[1740966837344,5.2e-07,93065.0,93064.0,2.43076045]
[1740966840837,5.2e-07,93065.0,93064.0,2.61036045]
[1740966841136,5.2e-07,93065.0,93064.0,2.56036045]
[1740966841277,5.2e-07,93065.0,93064.0,2.61036045]
[1740966844684,0.0003404,93089.0,93088.0,0.161137]
[1740966844890,0.0003404,93089.0,93079.0,0.65642503]
[1740966844891,0.98873498,93080.0,93079.0,0.65642503]
[1740966845219,0.00044424,93089.0,93088.0,0.711137]
[1740966845423,0.000341,93090.0,93089.0,0.511136]
[1740966845630,0.000341,93090.0,93089.0,1.495799]
[1740966845834,0.000341,93090.0,93089.0,2.995799]
[1740966845984,0.000341,93090.0,93089.0,3.10463602]
[1740966846415,0.000341,93090.0,93089.0,3.01162302]
[1740966847513,0.0794,93128.0,93089.0,3.01162302]
[1740966847514,0.0794,93128.0,93096.0,0.461124]
[1740966847672,0.0794,93128.0,93096.0,1.15909602]
[1740966847877,2e-07,93101.0,93100.0,0.161117]
[1740966848192,0.3241,93165.0,93100.0,0.161117]
[1740966848193,8e-05,93107.0,93106.0,0.511106]
[1740966848400,0.0764,93143.0,93111.0,0.711098]
[1740966848596,0.0764,93143.0,93111.0,1.52694402]
[1740966848800,0.0003406,93159.0,93140.0,0.461047]
[1740966848983,0.0003406,93159.0,93152.0,0.461027]
[1740966849379,0.00539289,93153.0,93152.0,0.461027]
[1740966849646,0.00539289,93153.0,93152.0,0.46911663]
[1740966850484,0.00539289,93153.0,93152.0,0.47611663]
[1740966851345,0.00539289,93153.0,93152.0,0.48311663]
[1740966852321,0.00539289,93153.0,93152.0,0.82160745]
[1740966853169,0.00539289,93153.0,93152.0,2.32160745]
[1740966854662,0.00556329,93153.0,93152.0,2.32160745]
[1740966854828,0.00556329,93153.0,93152.0,2.43044447]
[1740966855029,0.00243097,93153.0,93152.0,2.43044447]
[1740966856093,0.00243097,93153.0,93152.0,2.32160745]
[1740966857067,0.00243097,93153.0,93152.0,0.82160745]
[1740966857908,0.00243097,93153.0,93152.0,0.93044447]
[1740966858175,0.0003406,93159.0,93158.0,0.461016]
[1740966858349,0.0003406,93159.0,93158.0,0.56985302]
[1740966858350,0.00038087,93159.0,93158.0,0.56985302]
[1740966858545,0.00038087,93159.0,93158.0,1.28697802]
[1740966858747,0.00038087,93159.0,93158.0,1.24434202]
[1740966859174,0.00038087,93159.0,93158.0,0.96847002]
[1740966859347,0.00038087,93159.0,93158.0,0.97547002]
[1740966859572,0.00038087,93159.0,93158.0,1.30957002]
[1740966859978,0.00539,93179.0,93178.0,0.460982]
[1740966860297,0.0781,93198.0,93183.0,0.460973]
[1740966860594,0.00021053,93184.0,93183.0,0.56981002]
[1740966862468,0.00021053,93184.0,93183.0,1.09691002]
[1740966862673,0.00021053,93184.0,93183.0,1.27076702]
[1740966862873,0.00021053,93184.0,93183.0,1.37076702]
[1740966863092,0.00021053,93184.0,93183.0,1.23936702]
[1740966863292,0.00021053,93184.0,93183.0,2.60391002]
[1740966863634,0.00021053,93184.0,93183.0,2.61091002]
[1740966864116,0.0832,93214.0,93204.0,0.160937]
[1740966864287,0.00503023,93205.0,93204.0,1.17575402]
[1740966864469,0.00503023,93205.0,93204.0,1.33614402]
[1740966864668,0.00503023,93205.0,93204.0,2.67575402]
[1740966865110,0.00503023,93205.0,93204.0,2.68399363]
[1740966865314,0.00503023,93205.0,93204.0,2.74412989]
[1740966865813,0.00503023,93205.0,93204.0,2.77237021]
[1740966866160,0.00503023,93205.0,93204.0,2.70049021]
[1740966867110,0.00503023,93205.0,93204.0,2.38465319]
[1740966867414,0.00503023,93205.0,93204.0,2.37041287]
[1740966867597,0.00503023,93205.0,93204.0,2.36341287]
[1740966868590,0.00503023,93205.0,93204.0,2.35641287]
[1740966868812,0.00503023,93205.0,93204.0,2.36341287]
[1740966869144,0.00503023,93205.0,93204.0,2.37041287]
[1740966869344,0.00503023,93205.0,93204.0,2.35641287]
[1740966869569,0.00503023,93205.0,93204.0,2.36341287]
[1740966870114,0.00503023,93205.0,93204.0,2.37041287]
[1740966870715,0.00503023,93205.0,93204.0,2.36341287]
[1740966870924,0.00503023,93205.0,93204.0,2.35641287]
[1740966871129,0.00503023,93205.0,93204.0,2.32925381]
[1740966872347,0.00503023,93205.0,93204.0,2.33625381]
[1740966872620,0.00503023,93205.0,93204.0,2.34325381]
[1740966872823,0.00503023,93205.0,93204.0,2.33625381]
[1740966873281,0.00503023,93205.0,93204.0,2.32925381]
[1740966873433,0.00463023,93205.0,93204.0,2.33625381]
[1740966873622,0.00463023,93205.0,93204.0,2.37041287]
[1740966873825,0.00463023,93205.0,93204.0,2.3280142]
[1740966874068,0.00463023,93205.0,93204.0,2.3350142]
[1740966874280,0.00463023,93205.0,93204.0,2.3420142]
[1740966875385,0.00463023,93205.0,93204.0,2.3280142]
[1740966875829,0.00463023,93205.0,93204.0,2.3350142]
[1740966876143,0.00463023,93205.0,93204.0,2.3280142]
[1740966876592,0.00463023,93205.0,93204.0,2.3350142]
[1740966877034,0.00463023,93205.0,93204.0,2.3280142]
[1740966877256,0.00463023,93205.0,93204.0,2.3350142]
[1740966879531,0.00480043,93205.0,93204.0,2.3350142]
[1740966879869,0.00480043,93205.0,93204.0,2.3280142]
[1740966880071,0.00480043,93205.0,93204.0,2.3210142]
[1740966880281,0.00480043,93205.0,93204.0,2.3280142]
[1740966880478,0.00480043,93205.0,93204.0,2.3350142]
[1740966880955,0.00480043,93205.0,93204.0,2.3280142]
[1740966881153,0.00480043,93205.0,93204.0,2.3350142]
[1740966881562,0.00480043,93205.0,93204.0,2.34803645]
[1740966881764,0.00480043,93205.0,93204.0,2.35503645]
[1740966881966,0.00480043,93205.0,93204.0,2.34803645]
[1740966882628,0.00480043,93205.0,93204.0,2.34103645]